bitfinex/quotes_SOLUSD_20250722
["timestamp","ask_amount","ask_price","bid_price","bid_amount"]
[1753197305404,12.16205673,204.62,204.57,0.03]
[1753197305709,5.54472059,204.72,204.63,0.5]
[1753197305915,12.16205673,204.69,204.63,50.48205673]
[1753197306125,12.16205673,204.71,204.63,67.69868689]
[1753197306390,0.66,204.72,204.62,29.39]
[1753197306516,1.6274,204.73,204.66,12.16205673]
[1753197306840,12.16205673,204.75,204.69,12.16205673]
[1753197307134,2.1927,204.8,204.73,12.16205673]
[1753197307329,12.16205673,204.81,204.75,41.55205673]
[1753197307502,12.16205673,204.81,204.75,29.39]
[1753197307704,0.66,204.84,204.77,41.55205673]
[1753197307921,1.5327,204.88,204.77,41.55205673]
[1753197307922,6.41384205,204.88,204.78,12.16205673]
[1753197308127,12.16205673,204.79,204.67,26.0]
[1753197308313,6.41368684,204.88,204.74,37.94]
[1753197308314,0.66,204.84,204.74,37.94]
[1753197308515,12.16205673,204.8,204.74,37.94]
[1753197308806,0.66,204.84,204.74,37.94]
[1753197309023,12.16205673,204.8,204.74,37.94]
[1753197309304,12.16205673,204.8,204.74,67.33]
[1753197309501,12.16205673,204.8,204.74,79.49205673]
[1753197310011,12.16205673,204.88,204.82,29.39]
[1753197310212,12.16205673,204.88,204.84,29.39]
[1753197310725,12.22205673,204.89,204.84,29.8781859]
[1753197310914,0.06,204.89,204.85,12.65021879]
[1753197311113,0.06,204.89,204.86,30.08]
[1753197311333,0.06,204.89,204.88,29.39]
[1753197311636,0.06,204.89,204.88,41.55205673]
[1753197311810,0.06,204.89,204.88,59.0267407]
[1753197312008,0.06,204.89,204.88,63.9297407]
[1753197312205,0.06,204.89,204.88,30.08]
[1753197312406,0.06,204.89,204.88,59.0267407]
[1753197312835,0.06,204.89,204.88,56.91935233]
[1753197313011,0.06,204.89,204.88,73.96231495]
[1753197313215,0.06,204.89,204.88,83.77140906]
[1753197313409,0.06,204.89,204.88,107.48949964]
[1753197313721,0.06,204.89,204.88,106.98140906]
[1753197313943,0.06,204.89,204.88,40.13466836]
[1753197314128,0.06,204.89,204.88,29.39]
[1753197314334,0.06,204.89,204.88,67.27]
[1753197314748,0.06,204.89,204.88,67.96]
[1753197315060,0.06,204.89,204.88,67.27]
[1753197315233,0.06,204.89,204.88,79.92014731]
[1753197315935,0.06,204.89,204.88,102.35441945]
[1753197316148,0.06,204.89,204.88,121.43723476]
[1753197316334,0.06,204.89,204.88,110.82045992]
[1753197316536,12.16205673,204.98,204.91,26.0]
[1753197316748,12.16205673,204.97,204.93,29.39]
[1753197317048,22.05850555,205.0,204.93,26.43726614]
[1753197317250,22.05850555,205.0,204.93,26.92523764]
[1753197317457,22.05850555,205.0,204.95,26.43726614]
[1753197317656,12.16205673,204.96,204.89,29.39]
[1753197317839,0.67,204.99,204.91,29.39]
[1753197317840,12.16205673,204.94,204.91,29.39]
[1753197318041,0.67,204.99,204.92,38.1]
[1753197318241,12.16205673,204.96,204.92,38.1]
[1753197318447,12.16205673,204.95,204.93,38.1]
[1753197318640,12.16205673,204.94,204.9,55.39]
[1753197318949,12.16205673,204.91,204.88,26.0]
[1753197319128,0.67,204.93,204.88,26.0]
[1753197319333,0.67,204.93,204.89,38.12]
[1753197319555,0.67,204.93,204.87,26.0]
[1753197319759,12.16205673,204.89,204.88,38.1]
[1753197320139,12.16205673,204.89,204.81,16.78468397]
[1753197320140,12.83205673,204.89,204.79,5.583]
[1753197320344,12.16205673,204.85,204.8,38.1]
[1753197320544,12.16205673,204.85,204.83,26.0]
[1753197320942,12.16205673,204.85,204.84,38.1]
[1753197321348,12.16205673,204.85,204.84,38.08]
[1753197321565,12.16205673,204.85,204.82,29.39]
[1753197321741,12.16205673,204.87,204.83,38.08]
[1753197321935,12.16205673,204.89,204.82,41.55205673]
[1753197322136,12.16205673,204.89,204.83,50.92205673]
[1753197322356,12.16205673,204.85,204.82,26.0]
[1753197322552,0.67,204.85,204.84,4.903]
[1753197322750,12.16205673,204.85,204.84,4.903]
[1753197323366,1.1029,204.92,204.84,42.963]
[1753197323569,12.16205673,204.86,204.84,42.963]
[1753197323765,12.16205673,204.86,204.85,42.963]
[1753197323941,12.16205673,204.86,204.85,4.903]
[1753197324266,29.24689514,204.86,204.78,0.03]
[1753197324468,12.16205673,204.79,204.78,0.03]
[1753197324647,17.08483841,204.86,204.78,0.03]
[1753197324648,12.16205673,204.8,204.78,0.03]
[1753197324852,12.16205673,204.83,204.78,0.03]
[1753197325181,12.16205673,204.85,204.8,5.403]
[1753197325365,12.16205673,204.83,204.8,5.403]
[1753197325662,4.88090589,204.88,204.8,5.403]
[1753197325663,0.67,204.85,204.8,0.5]
[1753197325846,12.16205673,204.83,204.8,0.5]
[1753197326246,0.67,204.87,204.8,0.5]
[1753197326452,12.16205673,204.83,204.8,0.5]
[1753197326650,12.16205673,204.81,204.8,0.5]
[1753197326848,12.83205673,204.81,204.78,0.03]
[1753197327048,1.1029,204.92,204.78,0.03]
[1753197327049,12.16205673,204.79,204.78,0.03]
[1753197328039,41.48365054,204.9,204.78,0.03]
[1753197328245,12.16205673,204.79,204.78,0.03]
[1753197328846,17.08150316,204.9,204.79,29.39]
[1753197329051,12.16205673,204.84,204.8,4.903]
[1753197329253,12.16205673,204.84,204.82,4.903]
[1753197329449,17.72150316,204.9,204.82,4.903]
[1753197329644,12.16205673,204.83,204.79,29.39]
[1753197329869,12.16205673,204.84,204.8,67.37]
[1753197330065,17.72150316,204.9,204.81,4.903]
[1753197330259,12.16205673,204.86,204.81,34.293]
[1753197330456,12.16205673,204.85,204.81,34.293]
[1753197330670,12.16205673,204.86,204.81,34.973]
[1753197330876,12.16205673,204.87,204.83,34.293]
[1753197331249,12.16205673,204.86,204.85,4.903]
[1753197331449,4.88042947,204.9,204.85,4.903]
[1753197331655,12.16205673,204.87,204.85,5.583]
[1753197331854,12.16205673,204.88,204.85,4.903]
[1753197332151,12.16205673,204.88,204.85,34.293]
[1753197332577,0.64,204.91,204.87,4.903]
[1753197332751,12.16205673,204.88,204.87,4.903]
[1753197332954,12.80205673,204.88,204.78,26.03]
[1753197333183,12.16205673,204.83,204.79,37.9]
[1753197333490,12.16205673,204.83,204.8,4.903]
[1753197333678,0.64,204.88,204.81,42.783]
[1753197333874,12.16205673,204.82,204.81,42.783]
[1753197334063,12.16205673,204.83,204.81,42.783]
[1753197334249,12.80205673,204.82,204.78,0.03]
[1753197334447,0.64,204.82,204.78,37.89]
[1753197334677,0.64,204.81,204.79,4.903]
[1753197334881,12.80205673,204.8,204.78,0.03]
[1753197335052,12.16205673,204.79,204.78,0.03]
[1753197335456,17.72735105,204.83,204.78,0.03]
[1753197335668,17.72735105,204.83,204.78,42.793]
[1753197335878,0.64,204.9,204.79,50.15130509]
[1753197336062,0.64,204.9,204.79,44.76]
[1753197336253,12.16205673,204.85,204.81,29.39]
[1753197336499,12.16205673,204.83,204.82,37.84]
[1753197336701,12.16205673,204.83,204.78,0.03]
[1753197336905,0.64,204.85,204.78,0.03]
[1753197336906,12.16205673,204.85,204.81,37.84]
[1753197337200,12.16205673,204.86,204.81,37.84]
[1753197337411,4.88066767,204.89,204.82,30.07]
[1753197337697,4.87971502,204.93,204.87,0.03]
[1753197337898,12.22205673,204.92,204.89,4.903]
[1753197338082,12.16205673,204.91,204.87,0.03]
[1753197338278,0.06,204.92,204.88,12.84205673]
[1753197338482,0.06,204.92,204.88,30.07]
[1753197338698,0.06,204.92,204.91,34.293]
[1753197338870,4.87828674,204.99,204.91,79.90007586]
[1753197339065,12.16205673,204.97,204.92,29.39]
[1753197339296,12.16205673,204.93,204.92,37.9]
[1753197339598,12.16205673,204.93,204.92,42.803]
[1753197339774,12.16205673,204.93,204.87,0.03]
[1753197339984,12.16205673,204.88,204.87,0.03]
[1753197340364,12.16205673,204.89,204.87,0.03]
[1753197340891,17.07900258,204.93,204.87,0.03]
[1753197341091,12.16205673,204.88,204.87,0.03]
[1753197342096,0.64,204.9,204.87,0.03]
[1753197342278,12.16205673,204.9,204.87,42.753]
[1753197342484,12.16205673,204.9,204.89,0.5]
[1753197342899,4.87947692,204.94,204.89,1.18]
[1753197343198,12.16205673,204.9,204.87,0.03]
[1753197343408,12.16205673,204.88,204.87,0.03]
[1753197344183,17.04296262,204.88,204.87,0.03]
[1753197345280,17.68296262,204.88,204.87,0.03]
[1753197346010,17.04296262,204.88,204.87,0.03]
[1753197346810,17.07829482,204.94,204.87,0.03]
[1753197347019,12.16205673,204.89,204.87,0.71]
[1753197347190,17.71829482,204.94,204.87,0.03]
[1753197347394,12.16205673,204.88,204.87,0.03]
[1753197347917,12.16205673,204.9,204.87,0.03]
[1753197348119,12.16205673,204.89,204.87,0.03]
[1753197348494,12.16205673,204.88,204.87,0.03]
[1753197349016,12.16205673,204.88,204.87,0.53]
[1753197349326,12.80205673,204.88,204.75,4.933]
[1753197349496,12.80205673,204.88,204.8,37.7]
[1753197349497,12.16205673,204.81,204.8,37.7]
[1753197349694,12.19739335,204.97,204.83,55.39]
[1753197349897,12.16205673,204.88,204.84,37.7]
[1753197350198,12.16205673,204.87,204.84,37.7]
[1753197350388,29.2711484,204.98,204.84,37.7]
[1753197350389,17.07816922,204.94,204.85,12.88205673]
[1753197350620,4.87947692,204.94,204.86,30.11]
[1753197350819,12.16205673,204.94,204.87,12.16205673]
[1753197350990,12.16205673,204.92,204.87,0.72]
[1753197351631,12.16205673,204.92,204.86,12.16205673]
[1753197351931,12.16205673,204.93,204.88,0.72]
[1753197352618,17.04193123,204.93,204.88,0.72]
[1753197353013,12.16205673,204.95,204.89,0.72]
[1753197353215,12.16205673,204.96,204.89,50.74205673]
[1753197353418,4.87828674,204.99,204.93,12.16205673]
[1753197353616,17.21350555,205.0,204.96,12.16205673]
[1753197353837,22.09156803,205.0,204.97,0.72]
[1753197354018,22.09156803,205.0,204.94,49.51831723]
[1753197354217,22.09156803,205.0,204.92,29.87799531]
[1753197354218,12.16205673,204.95,204.92,37.84]
[1753197354445,12.16205673,204.93,204.92,37.84]
[1753197354610,0.64,204.99,204.89,37.84]
[1753197354611,17.07483656,204.98,204.89,37.84]
[1753197354805,12.16205673,204.91,204.87,0.72]
[1753197355015,0.64,204.97,204.85,29.39]
[1753197355257,12.16205673,204.88,204.81,12.16205673]
[1753197355530,12.16205673,204.87,204.83,37.82]
[1753197355939,12.16205673,204.86,204.83,37.82]
[1753197356431,4.88209734,204.83,204.78,0.03]
[1753197356738,17.04415407,204.83,204.78,0.03]
[1753197357119,42.05145417,204.83,204.78,0.03]
[1753197357324,12.16205673,204.79,204.78,1e-08]
[1753197357808,12.16205673,204.79,204.66,0.2]
[1753197358011,6.1081,204.8,204.67,12.88205673]
[1753197358212,12.16205673,204.71,204.67,0.72]
[1753197358407,4.88577159,204.68,204.66,0.2]
[1753197358622,12.16205673,204.68,204.66,0.2]
[1753197359126,4.88472059,204.72,204.66,0.2]
[1753197359351,12.16205673,204.68,204.66,0.2]
[1753197359550,12.16205673,204.67,204.66,0.2]
[1753197359755,12.16205673,204.69,204.66,0.2]
[1753197360059,4.88472059,204.72,204.66,0.2]
[1753197360354,16.78468397,204.82,204.66,0.2]
[1753197360355,6.5024,204.85,204.71,12.16205673]
[1753197360554,12.16205673,204.78,204.72,0.72]
[1753197360755,17.08650653,204.84,204.68,16.78468397]
[1753197360756,12.16205673,204.74,204.7,37.82]
[1753197360965,12.16205673,204.72,204.68,0.72]
[1753197361167,12.16205673,204.71,204.66,38.02]
[1753197361331,12.16205673,204.71,204.66,38.74]
[1753197361531,12.16205673,204.71,204.67,0.72]
[1753197361733,0.61,204.77,204.67,0.72]
[1753197361734,12.16205673,204.7,204.67,0.72]
[1753197361934,12.16205673,204.68,204.66,0.2]
[1753197362231,0.61,204.67,204.66,0.2]
[1753197362446,12.16205673,204.67,204.66,0.2]
[1753197362654,17.04797064,204.67,204.66,0.2]
[1753197363460,12.82299193,204.71,204.66,0.2]
[1753197363461,12.16205673,204.68,204.66,0.2]
[1753197363668,4.88424343,204.74,204.66,13.08205673]
[1753197363826,4.88424343,204.74,204.66,0.92]
[1753197364031,12.16205673,204.73,204.67,12.16205673]
[1753197364246,17.09327659,204.76,204.66,0.92]
[1753197364439,6.3606,204.78,204.66,0.92]
[1753197364440,12.16205673,204.74,204.68,12.16205673]
[1753197364646,17.04630573,204.74,204.68,12.16205673]
[1753197364850,12.16205673,204.73,204.67,37.8]
[1753197365154,4.88430322,204.74,204.67,37.8]
[1753197365155,12.16205673,204.71,204.67,37.8]
[1753197365657,4.88430322,204.74,204.66,0.2]
[1753197365658,12.16205673,204.68,204.66,0.2]
[1753197365843,12.16205673,204.69,204.66,0.2]
[1753197366270,12.16205673,204.67,204.66,0.2]
[1753197366590,4.88591391,204.67,204.66,0.2]
[1753197366760,17.09452278,204.75,204.66,0.92]
[1753197367077,12.16205673,204.69,204.67,0.72]
[1753197367278,12.16205673,204.7,204.66,0.2]
[1753197367486,12.16205673,204.69,204.66,0.2]
[1753197367794,12.16205673,204.67,204.66,0.2]
[1753197368777,29.87275541,204.67,204.61,0.03]
[1753197368952,12.16205673,204.62,204.61,0.03]
[1753197369354,12.77205673,204.62,204.52,29.3]
[1753197369560,12.16205673,204.6,204.49,0.03]
[1753197369880,12.16205673,204.52,204.49,0.03]
[1753197370082,0.55,204.6,204.49,0.03]
[1753197370307,12.16205673,204.52,204.49,0.03]
[1753197370475,12.16205673,204.5,204.49,0.03]
[1753197370673,12.16205673,204.51,204.49,0.03]
[1753197371002,1.6071,204.61,204.49,0.03]
[1753197371003,4.88758553,204.6,204.49,5.653]
[1753197371174,12.16205673,204.55,204.49,12.91205673]
[1753197371569,4.88758553,204.6,204.49,12.91205673]
[1753197371570,12.16205673,204.6,204.53,12.16205673]
[1753197371781,12.16205673,204.6,204.55,4.903]
[1753197372173,12.16205673,204.6,204.55,0.72]
[1753197372501,12.16205673,204.57,204.52,29.3]
[1753197372688,12.16205673,204.57,204.51,44.8311]
[1753197372689,12.16205673,204.55,204.51,37.8]
[1753197372995,12.16205673,204.53,204.49,0.03]
[1753197373215,12.16205673,204.51,204.49,0.03]
[1753197373415,12.16205673,204.5,204.49,0.03]
[1753197373774,12.71205673,204.5,204.49,0.03]
[1753197373971,0.55,204.5,204.49,0.03]
[1753197374198,12.16205673,204.5,204.49,0.03]
[1753197374807,17.60203228,204.5,204.49,0.03]
[1753197375471,12.16205673,204.5,204.49,0.03]
[1753197375803,8.91412829,204.57,204.49,0.03]
[1753197376010,4.88854125,204.56,204.49,0.03]
[1753197376180,12.16205673,204.55,204.49,12.91205673]
[1753197376379,6.1175,204.62,204.51,12.16205673]
[1753197376586,12.16205673,204.61,204.55,12.16205673]
[1753197376903,4.8871078,204.62,204.55,12.16205673]
[1753197376904,12.16205673,204.62,204.55,0.72]
[1753197377081,12.16205673,204.6,204.55,0.72]
[1753197377277,12.16205673,204.62,204.56,12.88205673]
[1753197377677,12.16205673,204.61,204.53,67.1]
[1753197377900,12.16205673,204.6,204.53,79.26205673]
[1753197378098,12.16205673,204.58,204.53,37.8]
[1753197378294,12.16205673,204.56,204.49,12.19205673]
[1753197378525,17.05117062,204.54,204.49,0.69]
[1753197378695,12.16205673,204.52,204.49,0.69]
[1753197378893,4.88911389,204.54,204.49,0.69]
[1753197378894,12.16205673,204.53,204.49,0.69]
[1753197379414,12.16205673,204.52,204.49,0.69]
[1753197379789,12.16205673,204.52,204.49,0.03]
[1753197379995,12.16205673,204.6,204.51,12.16205673]
[1753197380289,16.78468397,204.65,204.49,0.03]
[1753197380487,42.08026823,204.67,204.5,0.66]
[1753197380793,12.16205673,204.55,204.5,0.66]
[1753197381095,12.16205673,204.54,204.5,0.66]
[1753197381306,12.16205673,204.53,204.49,0.03]
[1753197381593,12.16205673,204.51,204.49,0.03]
[1753197381809,0.55,204.6,204.49,0.03]
[1753197381810,12.16205673,204.5,204.49,0.03]
[1753197382499,12.16205673,204.52,204.49,0.03]
[1753197382700,4.88878024,204.55,204.49,0.69]
[1753197382909,12.16205673,204.5,204.49,0.03]
[1753197383793,17.66073086,204.55,204.49,0.03]
[1753197383794,12.16205673,204.52,204.49,0.03]
[1753197384000,12.16205673,204.51,204.49,0.03]
[1753197384195,17.11073086,204.55,204.49,0.03]
[1753197384414,4.88878024,204.55,204.49,0.03]
[1753197384611,12.16205673,204.53,204.49,0.03]
[1753197384800,12.16205673,204.52,204.49,0.03]
[1753197385900,12.16205673,204.53,204.49,0.03]
[1753197386102,12.16205673,204.54,204.49,0.03]
[1753197386399,12.16205673,204.52,204.49,0.03]
[1753197386617,17.05203228,204.5,204.49,0.03]
[1753197387124,17.60203228,204.5,204.49,0.03]
[1753197387294,29.82697115,204.5,204.44,0.03]
[1753197387494,12.16205673,204.45,204.44,0.03]
[1753197388810,5.44117143,204.45,204.44,0.03]
[1753197388999,12.16205673,204.45,204.44,0.03]
[1753197389421,17.05322816,204.45,204.44,0.03]
[1753197390709,17.3451343,204.45,204.44,0.03]
[1753197391509,16.7951343,204.45,204.44,0.03]
[1753197391704,12.16205673,204.45,204.44,0.03]
[1753197392133,4.89021468,204.49,204.44,0.03]
[1753197392134,12.16205673,204.47,204.44,0.69]
[1753197392425,12.16205673,204.45,204.44,0.03]
[1753197392797,17.05322816,204.45,204.44,0.03]
[1753197393002,17.60322816,204.45,204.44,0.03]
[1753197393704,17.60322816,204.45,204.4,0.03]
[1753197393705,29.83115674,204.45,204.4,0.03]
[1753197393908,12.16205673,204.41,204.4,0.03]
[1753197394115,12.16205673,204.45,204.4,0.03]
[1753197394310,4.88925829,204.53,204.44,41.46205673]
[1753197394506,12.16205673,204.5,204.44,42.12205673]
[1753197394814,12.16205673,204.49,204.44,29.96]
[1753197395013,12.16205673,204.47,204.42,66.9]
[1753197395314,12.16205673,204.48,204.43,0.66]
[1753197395728,12.16205673,204.47,204.43,0.66]
[1753197395924,4.88965103,204.52,204.45,12.16205673]
[1753197396124,12.16205673,204.53,204.48,12.16205673]
[1753197396418,12.16205673,204.54,204.49,0.66]
[1753197396626,12.16205673,204.53,204.49,0.66]
[1753197396824,12.16205673,204.53,204.42,26.0]
[1753197396825,12.16205673,204.5,204.44,0.66]
[1753197397018,12.16205673,204.47,204.44,0.66]
[1753197397197,12.16205673,204.47,204.41,41.46205673]
[1753197397400,12.16205673,204.47,204.42,29.3]
[1753197397613,12.16205673,204.46,204.4,49.79205673]
[1753197397795,12.16205673,204.45,204.4,37.63]
[1753197398006,12.16205673,204.44,204.4,38.29]
[1753197398213,12.16205673,204.43,204.4,38.29]
[1753197398612,12.16205673,204.44,204.4,38.29]
[1753197398800,17.05324451,204.45,204.41,0.66]
[1753197399001,0.06,204.5,204.42,0.66]
[1753197399307,0.06,204.5,204.42,42.12205673]
[1753197399308,12.16205673,204.48,204.42,42.12205673]
[1753197399609,0.06,204.5,204.46,12.16205673]
[1753197399808,4.95000674,204.5,204.45,29.3]
[1753197400010,12.16205673,204.48,204.43,26.0]
[1753197400221,4.95000674,204.5,204.4,126.13]
[1753197400222,12.16205673,204.47,204.41,12.16205673]
[1753197400426,12.16205673,204.49,204.44,0.66]
[1753197400730,0.06,204.5,204.45,29.96]
[1753197400932,0.06,204.5,204.46,0.66]
[1753197401107,12.16205673,204.49,204.45,67.6]
[1753197401440,12.22205673,204.5,204.46,0.66]
[1753197401607,12.22205673,204.5,204.45,29.3]
[1753197401811,12.22205673,204.5,204.42,4.903]
[1753197401812,12.16205673,204.48,204.43,29.3]
[1753197402012,0.06,204.5,204.42,49.78205673]
[1753197402013,12.16205673,204.47,204.42,37.62]
[1753197402318,0.06,204.5,204.42,37.62]
[1753197402319,12.16205673,204.45,204.42,37.62]
[1753197402626,0.06,204.5,204.42,37.62]
[1753197402627,12.16205673,204.49,204.43,17.72505673]
[1753197402807,4.8902722,204.49,204.43,17.72505673]
[1753197403121,0.06,204.5,204.45,46.36505673]
[1753197403318,4.95007474,204.5,204.46,0.66]
[1753197403522,17.11213147,204.5,204.46,5.563]
[1753197403716,0.06,204.5,204.46,4.903]
[1753197403918,0.06,204.5,204.47,0.66]
[1753197404127,17.11206601,204.5,204.46,37.58]
[1753197404308,0.06,204.5,204.47,0.66]
[1753197404629,4.95001902,204.5,204.47,0.66]
[1753197404831,0.06,204.48,204.47,0.66]
[1753197405003,12.22205673,204.48,204.44,0.03]
[1753197405204,12.16205673,204.45,204.44,0.03]
[1753197405501,0.06,204.48,204.44,0.03]
[1753197405707,12.16205673,204.45,204.44,0.03]
[1753197406505,7.0922,204.45,204.4,1e-08]
[1753197406702,12.16205673,204.42,204.4,1e-08]
[1753197406915,17.17658841,204.48,204.41,0.66]
[1753197407117,12.16205673,204.46,204.41,0.66]
[1753197407433,12.16205673,204.43,204.4,1e-08]
[1753197407610,12.16205673,204.46,204.4,1e-08]
[1753197407811,12.16205673,204.46,204.41,0.68]
[1753197408007,12.16205673,204.46,204.42,0.68]
[1753197408227,4.95045383,204.48,204.43,0.68]
[1753197408525,4.95045383,204.48,204.46,4.903]
[1753197408526,0.06,204.48,204.46,4.903]
[1753197408728,0.06,204.48,204.47,0.68]
[1753197408916,0.06,204.48,204.47,47.53412603]
[1753197409110,0.06,204.48,204.47,57.32112603]
[1753197409418,0.06,204.5,204.47,57.32112603]
[1753197409612,0.06,204.5,204.49,46.36505673]
[1753197409816,0.06,204.5,204.49,29.3]
[1753197410015,0.06,204.5,204.49,29.98]
[1753197410608,0.06,204.5,204.49,0.68]
[1753197410803,0.06,204.5,204.48,37.6]
[1753197410804,12.22205673,204.5,204.48,37.6]
[1753197411024,4.89021468,204.49,204.48,37.6]
[1753197411574,17.05227141,204.49,204.4,0.68000001]
[1753197411712,17.05227141,204.49,204.44,4.903]
[1753197411713,4.89021468,204.49,204.44,4.903]
[1753197411922,12.16205673,204.45,204.43,37.58]
[1753197412115,12.16205673,204.44,204.43,37.58]
[1753197412315,17.11575138,204.49,204.43,37.58]
[1753197412517,12.16205673,204.45,204.43,37.58]
[1753197412913,17.0534219,204.45,204.43,37.58]
[1753197413231,4.89136517,204.45,204.43,37.58]
[1753197413531,17.05251056,204.48,204.44,0.68]
[1753197413827,12.16205673,204.47,204.44,0.68]
[1753197414624,17.05251056,204.48,204.44,0.68]
[1753197414930,4.95002181,204.5,204.45,42.14205673]
[1753197415331,0.06,204.5,204.47,41.46205673]
[1753197415538,0.06,204.5,204.48,38.18]
[1753197415847,0.06,204.5,204.48,79.64205673]
[1753197416024,0.06,204.5,204.49,0.68]
[1753197416231,0.06,204.5,204.49,42.14205673]
[1753197416628,0.06,204.5,204.49,47.04505673]
[1753197417245,0.06,204.5,204.49,68.56337819]
[1753197417624,0.06,204.5,204.49,90.23827684]
[1753197417930,0.06,204.5,204.49,85.34806216]
[1753197418744,0.06,204.5,204.49,68.56337819]
[1753197419056,0.06,204.5,204.49,44.67]
[1753197419237,0.06,204.5,204.49,29.98]
[1753197419544,0.06,204.5,204.49,66.72]
[1753197419715,0.06,204.5,204.49,93.57205673]
[1753197419920,0.06,204.5,204.49,94.25205673]
[1753197420221,0.06,204.5,204.49,72.303]
[1753197421116,0.06,204.5,204.45,0.68]
[1753197421117,12.22205673,204.5,204.45,0.68]
[1753197421319,12.16205673,204.47,204.44,29.3]
[1753197421520,0.06,204.5,204.49,55.3]
[1753197421751,0.06,204.5,204.49,94.02107819]
[1753197421942,12.54921847,204.7,204.49,94.02107819]
[1753197421943,12.16205673,204.6,204.49,94.70107819]
[1753197422112,4.94880491,204.55,204.5,72.303]
[1753197422311,17.11086164,204.55,204.51,0.68]
[1753197422555,0.06,204.55,204.52,4.903]
[1753197422715,0.06,204.55,204.54,34.203]
[1753197422920,0.06,204.55,204.54,78.88205673]
[1753197423121,0.06,204.55,204.54,71.623]
[1753197423323,0.06,204.55,204.54,79.56205673]
[1753197423636,0.06,204.55,204.54,42.14205673]
[1753197423816,0.06,204.55,204.54,79.54205673]
[1753197424239,0.06,204.55,204.54,116.40864262]
[1753197424433,0.06,204.55,204.54,115.9197407]
[1753197424934,0.06,204.55,204.54,86.993]
[1753197425351,0.06,204.55,204.54,99.15505673]
[1753197425720,0.06,204.55,204.54,115.9397407]
[1753197426322,0.06,204.55,204.46,4.16530475]
[1753197426527,0.06,204.55,204.47,71.46205673]
[1753197426751,12.16205673,204.51,204.47,66.9]
[1753197427053,0.06,204.55,204.49,29.3]
[1753197427240,4.88949735,204.52,204.5,37.6]
[1753197427443,12.16205673,204.51,204.45,29.3]
[1753197427626,12.16205673,204.46,204.44,37.6]
[1753197427827,12.16205673,204.48,204.44,37.6]
[1753197428024,12.16205673,204.47,204.44,4.903]
[1753197428350,12.16205673,204.47,204.44,42.503]
[1753197428530,4.88949735,204.52,204.45,12.16205673]
[1753197428744,4.88925488,204.54,204.5,12.16205673]
[1753197429039,12.16205673,204.53,204.49,66.88]
[1753197429237,4.94879482,204.55,204.51,29.3]
[1753197429446,4.94879482,204.55,204.52,38.28]
[1753197429621,12.16205673,204.53,204.52,37.6]
[1753197429819,4.94879482,204.55,204.52,37.6]
[1753197430025,12.16205673,204.53,204.52,37.6]
[1753197430557,12.16205673,204.54,204.52,37.6]
[1753197430728,4.94879482,204.55,204.52,37.6]
[1753197430729,17.11085155,204.55,204.52,37.6]
[1753197431536,0.06,204.55,204.52,67.58]
[1753197432135,4.94878165,204.55,204.52,67.58]
[1753197432533,0.06,204.55,204.53,0.68]
[1753197432835,0.06,204.55,204.54,42.63095865]
[1753197433223,0.06,204.55,204.54,67.52]
[1753197433423,0.06,204.55,204.53,88.5]
[1753197433648,12.16205673,204.54,204.53,155.34]
[1753197433852,12.22205673,204.55,204.53,155.34]
[1753197434090,12.16205673,204.54,204.53,126.04]
[1753197434258,12.16205673,204.54,204.48,0.68]
[1753197434461,12.16205673,204.5,204.49,37.52]
[1753197434624,12.16205673,204.51,204.49,37.52]